[Event "*** Titled Tuesday 3|2 Blitz"]
[Site "Chess.com"]
[Date "2016.07.05"]
[Round "4"]
[White "Indianlad"]
[Black "ilya261991"]
[Result "1/2-1/2"]
[WhiteElo "2593"]
[BlackElo "2445"]
[TimeControl "180+2"]
[EndTime "11:47:53 PDT"]
[Termination "Game drawn by agreement"]

1. e4 {[%clk 0:03:01.9]} 1... c5 {[%clk 0:02:59.4]} 2. Nf3 {[%clk 0:03:02.9]}
2... d6 {[%clk 0:03:00.2]} 3. d4 {[%clk 0:03:04.4]} 3... Nf6 {[%clk 0:03:01.5]}
4. Nc3 {[%clk 0:03:05.5]} 4... cxd4 {[%clk 0:03:02.7]} 5. Nxd4 {[%clk
0:03:07.4]} 5... a6 {[%clk 0:03:03.7]} 6. Be2 {[%clk 0:03:07.2]} 6... e5 {[%clk
0:02:58.9]} 7. Nb3 {[%clk 0:03:07.9]} 7... Be7 {[%clk 0:02:59.3]} 8. O-O {[%clk
0:03:09.4]} 8... O-O {[%clk 0:02:59.4]} 9. a4 {[%clk 0:03:10.7]} 9... Be6 {[%clk
0:02:54.2]} 10. Bf3 {[%clk 0:03:12.3]} 10... Nc6 {[%clk 0:02:52.7]} 11. Nd5
{[%clk 0:03:09.9]} 11... Bxd5 {[%clk 0:02:35]} 12. exd5 {[%clk 0:03:11.2]} 12...
Nb8 {[%clk 0:02:30.3]} 13. a5 {[%clk 0:03:11.7]} 13... Nbd7 {[%clk 0:02:25.7]}
14. Ra4 {[%clk 0:03:12.1]} 14... b5 {[%clk 0:02:19.8]} 15. axb6 {[%clk
0:03:12.8]} 15... Nxb6 {[%clk 0:02:20.7]} 16. Ra5 {[%clk 0:03:10.5]} 16... Nc4
{[%clk 0:02:04.4]} 17. Ra2 {[%clk 0:03:10.4]} 17... Qb6 {[%clk 0:02:03.8]} 18.
Nd2 {[%clk 0:02:52.7]} 18... Rfc8 {[%clk 0:01:51.6]} 19. b3 {[%clk 0:02:50.5]}
19... Nxd2 {[%clk 0:01:49.7]} 20. Bxd2 {[%clk 0:02:52.4]} 20... e4 {[%clk
0:01:38.7]} 21. Be3 {[%clk 0:02:53.4]} 21... Qb7 {[%clk 0:01:38.9]} 22. Be2
{[%clk 0:02:50.7]} 22... Nxd5 {[%clk 0:01:38.7]} 23. Bd4 {[%clk 0:02:50.4]}
23... Nb4 {[%clk 0:01:29.6]} 24. Rb2 {[%clk 0:02:40.7]} 24... d5 {[%clk
0:01:25.5]} 25. c4 {[%clk 0:02:39.7]} 25... Nc6 {[%clk 0:01:22.4]} 26. Rd2
{[%clk 0:02:33.5]} 26... Bb4 {[%clk 0:00:55.1]} 27. cxd5 {[%clk 0:02:34.4]}
27... Bxd2 {[%clk 0:00:54.4]} 28. dxc6 {[%clk 0:02:35.8]} 28... Qb4 {[%clk
0:00:55.4]} 29. Bc4 {[%clk 0:02:37.4]} 29... Rxc6 {[%clk 0:00:41.9]} 30. Qg4
{[%clk 0:02:38.4]} 30... Rg6 {[%clk 0:00:37.9]} 31. Qxe4 {[%clk 0:02:39.5]}
31... Rf8 {[%clk 0:00:36.4]} 32. h4 {[%clk 0:02:37.2]} 32... Bc3 {[%clk
0:00:33]} 33. h5 {[%clk 0:02:37.8]} 33... Rh6 {[%clk 0:00:29.7]} 34. Be3 {[%clk
0:02:09.6]} 34... Rxh5 {[%clk 0:00:29.1]} 35. Rd1 {[%clk 0:02:11.1]} 35... Re5
{[%clk 0:00:27.1]} 36. Qh4 {[%clk 0:02:08.5]} 36... Qe7 {[%clk 0:00:18.6]} 37.
Qxe7 {[%clk 0:02:05.1]} 37... Rxe7 {[%clk 0:00:20.5]} 38. Bc5 {[%clk 0:02:06.6]}
38... Re1+ {[%clk 0:00:20.6]} 39. Rxe1 {[%clk 0:02:08]} 39... Bxe1 {[%clk
0:00:21.1]} 40. Bxf8 {[%clk 0:02:09.6]} 40... Kxf8 {[%clk 0:00:22.3]} 41. Bxa6
{[%clk 0:02:11.2]} 41... Bb4 {[%clk 0:00:21.9]} 42. Kf1 {[%clk 0:02:12.5]} 42...
Ke7 {[%clk 0:00:22.7]} 43. Ke2 {[%clk 0:02:14.1]} 43... Kd6 {[%clk 0:00:21.6]}
44. Bc4 {[%clk 0:02:16]} 44... f6 {[%clk 0:00:22.4]} 45. Bd3 {[%clk 0:02:17.4]}
45... h6 {[%clk 0:00:22]} 46. f4 {[%clk 0:02:18.4]} 46... g5 {[%clk 0:00:22.4]}
47. Kf3 {[%clk 0:02:19]} 47... gxf4 {[%clk 0:00:22.3]} 48. Kxf4 {[%clk
0:02:20.9]} 48... Bd2+ {[%clk 0:00:22.4]} 49. Kf5 {[%clk 0:02:21.8]} 49... Bg5
{[%clk 0:00:23.4]} 50. b4 {[%clk 0:02:23.2]} 50... Kc6 {[%clk 0:00:24.3]} 51.
b5+ {[%clk 0:02:24.6]} 51... Kb6 {[%clk 0:00:25.7]} 52. g4 {[%clk 0:02:26.5]}
52... Kc7 {[%clk 0:00:26.5]} 53. Kg6 {[%clk 0:02:25.3]} 53... Kb6 {[%clk
0:00:27.4]} 54. Kh5 {[%clk 0:02:25.7]} 54... Kc7 {[%clk 0:00:28.5]} 55. Kg6
{[%clk 0:02:27.2]} 55... Kb6 {[%clk 0:00:30]} 56. Kf7 {[%clk 0:02:28.8]} 56...
Kc7 {[%clk 0:00:31.4]} 57. Ke6 {[%clk 0:02:30.5]} 57... Kb6 {[%clk 0:00:32.8]}
58. Kd5 {[%clk 0:02:32.1]} 58... Bf4 {[%clk 0:00:33.1]} 59. Ke6 {[%clk
0:02:32.9]} 59... Bg5 {[%clk 0:00:34]} 60. Kd6 {[%clk 0:02:34.5]} 60... Bf4+
{[%clk 0:00:34.5]} 61. Kd5 {[%clk 0:02:35.9]} 61... Bg5 {[%clk 0:00:35.3]} 62.
Ke6 {[%clk 0:02:37.2]} 62... Kc7 {[%clk 0:00:35.1]} 63. Kf5 {[%clk 0:02:38.2]}
63... Kb6 {[%clk 0:00:35.8]} 64. Kg6 {[%clk 0:02:39.4]} 64... Kc7 {[%clk
0:00:35.8]} 1/2-1/2

[Event "*** Titled Tuesday 3|2 Blitz"]
[Site "Chess.com"]
[Date "2016.07.05"]
[Round "4"]
[White "twofoxniel"]
[Black "AdamHunt1"]
[Result "0-1"]
[WhiteElo "2516"]
[BlackElo "2387"]
[TimeControl "180+2"]
[EndTime "11:48:02 PDT"]
[Termination "AdamHunt1 won by checkmate"]

1. e4 {[%clk 0:03:01.6]} 1... c5 {[%clk 0:03:00.5]} 2. c3 {[%clk 0:03:02.3]}
2... Nf6 {[%clk 0:03:00.4]} 3. e5 {[%clk 0:03:03]} 3... Nd5 {[%clk 0:03:02]} 4.
d4 {[%clk 0:03:04.2]} 4... cxd4 {[%clk 0:03:03.2]} 5. cxd4 {[%clk 0:03:04.9]}
5... e6 {[%clk 0:03:05]} 6. Nf3 {[%clk 0:03:05.3]} 6... d6 {[%clk 0:03:06.2]} 7.
Bc4 {[%clk 0:03:03.3]} 7... Nc6 {[%clk 0:03:06.9]} 8. O-O {[%clk 0:03:03.6]}
8... Be7 {[%clk 0:03:07.5]} 9. Qe2 {[%clk 0:03:04.7]} 9... O-O {[%clk
0:03:08.2]} 10. Rd1 {[%clk 0:03:04.3]} 10... Bd7 {[%clk 0:03:03]} 11. Bxd5
{[%clk 0:03:04.1]} 11... exd5 {[%clk 0:03:03.5]} 12. Nc3 {[%clk 0:03:05.3]}
12... Be6 {[%clk 0:03:04]} 13. Bf4 {[%clk 0:03:04.5]} 13... Rc8 {[%clk
0:03:01.6]} 14. Nb5 {[%clk 0:03:04.9]} 14... dxe5 {[%clk 0:03:01.6]} 15. dxe5
{[%clk 0:03:05.9]} 15... Qb6 {[%clk 0:02:54.3]} 16. a3 {[%clk 0:03:00.3]} 16...
a6 {[%clk 0:02:42.7]} 17. Nd6 {[%clk 0:02:59.2]} 17... Rcd8 {[%clk 0:02:35.5]}
18. Rac1 {[%clk 0:02:53.1]} 18... Bxd6 {[%clk 0:02:23.5]} 19. exd6 {[%clk
0:02:53.8]} 19... Rfe8 {[%clk 0:02:25.2]} 20. Ng5 {[%clk 0:02:41.3]} 20... Bf5
{[%clk 0:02:17.6]} 21. Qf3 {[%clk 0:02:36.2]} 21... Be4 {[%clk 0:02:10.8]} 22.
Nxe4 {[%clk 0:02:30.9]} 22... dxe4 {[%clk 0:02:11.9]} 23. Qc3 {[%clk 0:02:22.8]}
23... Re6 {[%clk 0:02:01.9]} 24. b4 {[%clk 0:02:18.9]} 24... Qb5 {[%clk
0:01:58.6]} 25. Qc5 {[%clk 0:02:16.1]} 25... Qe2 {[%clk 0:01:56.5]} 26. d7
{[%clk 0:01:54.3]} 26... Qg4 {[%clk 0:01:43]} 27. Bc7 {[%clk 0:01:51.4]} 27...
Rg6 {[%clk 0:01:44.1]} 28. Bg3 {[%clk 0:01:07.7]} 28... Rxd7 {[%clk 0:01:45.3]}
29. f3 {[%clk 0:00:58.2]} 29... exf3 {[%clk 0:01:37.8]} 30. gxf3 {[%clk
0:00:51.4]} 30... Rxd1+ {[%clk 0:01:34.7]} 31. Rxd1 {[%clk 0:00:52.4]} 31...
Qxf3 {[%clk 0:01:35.8]} 32. Re1 {[%clk 0:00:43.1]} 32... Re6 {[%clk 0:01:26.1]}
33. Rxe6 {[%clk 0:00:38.4]} 33... fxe6 {[%clk 0:01:27.2]} 34. Qb6 {[%clk
0:00:37.9]} 34... Qd1+ {[%clk 0:01:19.7]} 35. Kg2 {[%clk 0:00:38.3]} 35... Qd5+
{[%clk 0:01:20.4]} 36. Kh3 {[%clk 0:00:39]} 36... Nd4 {[%clk 0:01:21.4]} 37. Qc7
{[%clk 0:00:39.5]} 37... h5 {[%clk 0:01:18]} 38. Be5 {[%clk 0:00:23.4]} 38...
Qf3+ {[%clk 0:01:16.5]} 39. Bg3 {[%clk 0:00:24.5]} 39... Kh7 {[%clk 0:01:06.8]}
40. Qd7 {[%clk 0:00:18.7]} 40... Nf5 {[%clk 0:00:59.9]} 41. Qxe6 {[%clk
0:00:11.9]} 41... Qf1# {[%clk 0:01:00.6]} 0-1

[Event "*** Titled Tuesday 3|2 Blitz"]
[Site "Chess.com"]
[Date "2016.07.05"]
[Round "4"]
[White "Alexander_Donchenko"]
[Black "viditchess"]
[Result "1/2-1/2"]
[WhiteElo "2588"]
[BlackElo "2522"]
[TimeControl "180+2"]
[EndTime "11:48:15 PDT"]
[Termination "Game drawn by repetition"]

1. Nf3 {[%clk 0:03:01.9]} 1... c5 {[%clk 0:03:00.4]} 2. c4 {[%clk 0:03:02.1]}
2... Nf6 {[%clk 0:03:00.4]} 3. Nc3 {[%clk 0:03:02]} 3... d5 {[%clk 0:03:00.5]}
4. cxd5 {[%clk 0:03:02.7]} 4... Nxd5 {[%clk 0:03:02.4]} 5. g3 {[%clk 0:03:04.1]}
5... Nc6 {[%clk 0:03:02.3]} 6. Bg2 {[%clk 0:03:05.5]} 6... Nc7 {[%clk 0:03:04]}
7. O-O {[%clk 0:03:06.8]} 7... e5 {[%clk 0:03:05.5]} 8. a3 {[%clk 0:03:07.5]}
8... Rb8 {[%clk 0:03:05.8]} 9. Rb1 {[%clk 0:03:08.3]} 9... f6 {[%clk 0:03:01.9]}
10. d3 {[%clk 0:03:08.9]} 10... Be7 {[%clk 0:03:01]} 11. Be3 {[%clk 0:03:09.7]}
11... O-O {[%clk 0:02:58]} 12. b4 {[%clk 0:03:10.5]} 12... cxb4 {[%clk
0:02:58.3]} 13. axb4 {[%clk 0:03:11.3]} 13... b5 {[%clk 0:02:04.8]} 14. Nd2
{[%clk 0:02:56.1]} 14... Nd4 {[%clk 0:01:43.9]} 15. Nce4 {[%clk 0:02:30.2]}
15... Nd5 {[%clk 0:01:36.8]} 16. Bxd4 {[%clk 0:02:19]} 16... exd4 {[%clk
0:01:38.7]} 17. Nf3 {[%clk 0:02:08.9]} 17... Kh8 {[%clk 0:01:28.8]} 18. Nxd4
{[%clk 0:02:05.5]} 18... Rb6 {[%clk 0:01:15.8]} 19. Qd2 {[%clk 0:01:25.4]} 19...
f5 {[%clk 0:01:16.9]} 20. Nc5 {[%clk 0:01:26.3]} 20... Bg5 {[%clk 0:01:08.4]}
21. Qb2 {[%clk 0:00:56.2]} 21... Ne3 {[%clk 0:01:02.1]} 22. Nc6 {[%clk
0:00:49.4]} 22... Qe8 {[%clk 0:00:31.1]} 23. fxe3 {[%clk 0:00:46.9]} 23... Bxe3+
{[%clk 0:00:31.4]} 24. Kh1 {[%clk 0:00:48.4]} 24... Rxc6 {[%clk 0:00:32.9]} 25.
Bxc6 {[%clk 0:00:49.3]} 25... Qxc6+ {[%clk 0:00:34.1]} 26. Rf3 {[%clk
0:00:50.6]} 26... f4 {[%clk 0:00:32]} 27. Ne4 {[%clk 0:00:37.2]} 27... Bg4
{[%clk 0:00:27.9]} 28. Rff1 {[%clk 0:00:37.6]} 28... f3 {[%clk 0:00:26.2]} 29.
Qe5 {[%clk 0:00:20.5]} 29... h6 {[%clk 0:00:23]} 30. h3 {[%clk 0:00:14.6]} 30...
Bxh3 {[%clk 0:00:16]} 31. Rxf3 {[%clk 0:00:15.6]} 31... Rxf3 {[%clk 0:00:15.2]}
32. exf3 {[%clk 0:00:17.5]} 32... Qc2 {[%clk 0:00:11.6]} 33. Qe8+ {[%clk
0:00:07.8]} 33... Kh7 {[%clk 0:00:12.8]} 34. Nf6+ {[%clk 0:00:04.9]} 34... gxf6
{[%clk 0:00:14.7]} 35. Qf7+ {[%clk 0:00:06.4]} 35... Kh8 {[%clk 0:00:16.3]} 36.
Qf8+ {[%clk 0:00:07.7]} 36... Kh7 {[%clk 0:00:17.9]} 37. Qf7+ {[%clk 0:00:09.6]}
37... Kh8 {[%clk 0:00:19.5]} 38. Qf8+ {[%clk 0:00:11.5]} 38... Kh7 {[%clk
0:00:21.1]} 39. Qf7+ {[%clk 0:00:13.4]} 39... Kh8 {[%clk 0:00:22.5]} 1/2-1/2

[Event "*** Titled Tuesday 3|2 Blitz"]
[Site "Chess.com"]
[Date "2016.07.05"]
[Round "4"]
[White "kpio91"]
[Black "Ginger_GM"]
[Result "1-0"]
[WhiteElo "2555"]
[BlackElo "2504"]
[TimeControl "180+2"]
[EndTime "11:48:17 PDT"]
[Termination "kpio91 won by resignation"]

1. Nf3 {[%clk 0:03:01.9]} 1... f5 {[%clk 0:03:00.6]} 2. g3 {[%clk 0:03:01.3]}
2... Nf6 {[%clk 0:03:01.2]} 3. Bg2 {[%clk 0:03:02.9]} 3... d6 {[%clk 0:03:02.7]}
4. d4 {[%clk 0:02:59]} 4... e6 {[%clk 0:03:04]} 5. O-O {[%clk 0:02:59.5]} 5...
Be7 {[%clk 0:03:05]} 6. c4 {[%clk 0:02:58.4]} 6... O-O {[%clk 0:03:06.5]} 7. b3
{[%clk 0:02:54]} 7... Ne4 {[%clk 0:03:07.2]} 8. Bb2 {[%clk 0:02:55.5]} 8... Bf6
{[%clk 0:03:08.2]} 9. Nfd2 {[%clk 0:02:55]} 9... Nxd2 {[%clk 0:03:08.6]} 10.
Qxd2 {[%clk 0:02:56.2]} 10... e5 {[%clk 0:03:05.7]} 11. d5 {[%clk 0:02:26.6]}
11... a5 {[%clk 0:02:57.2]} 12. Nc3 {[%clk 0:02:24.5]} 12... Nd7 {[%clk
0:02:57.7]} 13. Rac1 {[%clk 0:02:16.1]} 13... Nc5 {[%clk 0:02:58]} 14. f4 {[%clk
0:02:06.5]} 14... exf4 {[%clk 0:02:52.3]} 15. gxf4 {[%clk 0:02:05.5]} 15... Re8
{[%clk 0:02:51.9]} 16. Nd1 {[%clk 0:01:58.6]} 16... Ne4 {[%clk 0:02:50.3]} 17.
Qc2 {[%clk 0:01:45.2]} 17... Bxb2 {[%clk 0:02:42.8]} 18. Qxb2 {[%clk 0:01:46.3]}
18... Bd7 {[%clk 0:02:40.1]} 19. Nc3 {[%clk 0:01:46.8]} 19... Qf6 {[%clk
0:02:37.2]} 20. Rfe1 {[%clk 0:01:34]} 20... Re7 {[%clk 0:02:28.2]} 21. Qc2
{[%clk 0:01:33.5]} 21... Nc5 {[%clk 0:02:21.1]} 22. e3 {[%clk 0:01:28.8]} 22...
Rae8 {[%clk 0:02:21.3]} 23. Qd2 {[%clk 0:01:30.1]} 23... Kh8 {[%clk 0:02:06.3]}
24. Nd1 {[%clk 0:00:53.5]} 24... Ne4 {[%clk 0:02:01.6]} 25. Qxa5 {[%clk
0:00:47.1]} 25... Qh4 {[%clk 0:02:01.9]} 26. Rf1 {[%clk 0:00:42.2]} 26... b6
{[%clk 0:01:27.4]} 27. Qe1 {[%clk 0:00:41]} 27... Qh6 {[%clk 0:01:26.4]} 28. Nc3
{[%clk 0:00:36.5]} 28... Nf6 {[%clk 0:01:27.3]} 29. Rf3 {[%clk 0:00:35.9]} 29...
Ng4 {[%clk 0:01:27.7]} 30. Qg3 {[%clk 0:00:26.9]} 30... Rxe3 {[%clk 0:01:26.3]}
31. h3 {[%clk 0:00:24.5]} 31... Rxf3 {[%clk 0:01:26.7]} 32. Bxf3 {[%clk
0:00:25.8]} 32... Re3 {[%clk 0:01:18.6]} 33. Nd1 {[%clk 0:00:20.1]} 33... Rd3
{[%clk 0:01:12.1]} 34. Nf2 {[%clk 0:00:20.8]} 34... Nxf2 {[%clk 0:01:12.8]} 35.
Kxf2 {[%clk 0:00:22.1]} 35... Qf6 {[%clk 0:01:11.7]} 36. Rc2 {[%clk 0:00:19.6]}
36... Qd4+ {[%clk 0:01:11.3]} 37. Kg2 {[%clk 0:00:21]} 37... Rd1 {[%clk
0:01:12.1]} 38. Bxd1 {[%clk 0:00:20.3]} 38... Qxd1 {[%clk 0:01:13.4]} 39. Rf2
{[%clk 0:00:20.2]} 39... b5 {[%clk 0:01:09.7]} 40. Qg5 {[%clk 0:00:18.5]} 40...
Qe1 {[%clk 0:01:06.7]} 41. Qd8+ {[%clk 0:00:18.2]} 41... Be8 {[%clk 0:01:08]}
42. cxb5 {[%clk 0:00:15.3]} 42... Qe4+ {[%clk 0:01:08.5]} 43. Kh2 {[%clk
0:00:16.8]} 43... h6 {[%clk 0:01:08.6]} 44. b6 {[%clk 0:00:14.8]} 44... cxb6
{[%clk 0:01:08.7]} 45. Qxb6 {[%clk 0:00:13.2]} 45... Bh5 {[%clk 0:01:06.6]} 46.
Qd8+ {[%clk 0:00:11.9]} 46... Kh7 {[%clk 0:01:07.3]} 47. Qh4 {[%clk 0:00:13.6]}
47... Qe3 {[%clk 0:01:05.6]} 48. Qg3 {[%clk 0:00:14.1]} 48... Bf7 {[%clk
0:01:03.9]} 49. Qxe3 {[%clk 0:00:14.8]} 1-0

[Event "*** Titled Tuesday 3|2 Blitz"]
[Site "Chess.com"]
[Date "2016.07.05"]
[Round "4"]
[White "GianmarcoVaR"]
[Black "armago"]
[Result "1-0"]
[WhiteElo "2376"]
[BlackElo "2240"]
[TimeControl "180+2"]
[EndTime "11:48:20 PDT"]
[Termination "GianmarcoVaR won on time"]

1. d4 {[%clk 0:01:52]} 1... Nf6 {[%clk 0:02:59.9]} 2. Nf3 {[%clk 0:01:53.9]}
2... g6 {[%clk 0:03:00.8]} 3. c4 {[%clk 0:01:55.8]} 3... Bg7 {[%clk 0:03:01.8]}
4. g3 {[%clk 0:01:57.7]} 4... O-O {[%clk 0:03:02.9]} 5. Bg2 {[%clk 0:01:59.5]}
5... c6 {[%clk 0:03:04.5]} 6. O-O {[%clk 0:02:01.4]} 6... d5 {[%clk 0:03:05.9]}
7. b3 {[%clk 0:02:03.1]} 7... a5 {[%clk 0:03:06.1]} 8. Nc3 {[%clk 0:02:01.9]}
8... Ne4 {[%clk 0:03:07.4]} 9. Bb2 {[%clk 0:02:02.9]} 9... Nxc3 {[%clk
0:03:05.8]} 10. Bxc3 {[%clk 0:02:03.3]} 10... dxc4 {[%clk 0:03:05.5]} 11. bxc4
{[%clk 0:02:03.9]} 11... c5 {[%clk 0:03:06.8]} 12. Rc1 {[%clk 0:02:00.6]} 12...
Nc6 {[%clk 0:02:53.6]} 13. d5 {[%clk 0:02:00.5]} 13... Nb4 {[%clk 0:02:51.1]}
14. Bxg7 {[%clk 0:02:00.7]} 14... Kxg7 {[%clk 0:02:51.5]} 15. a3 {[%clk
0:02:01.3]} 15... Na6 {[%clk 0:02:50.5]} 16. e4 {[%clk 0:02:01.9]} 16... f6
{[%clk 0:02:47.5]} 17. e5 {[%clk 0:01:57.7]} 17... Bg4 {[%clk 0:02:45.3]} 18. h3
{[%clk 0:01:51.9]} 18... Bxf3 {[%clk 0:02:43.5]} 19. Qxf3 {[%clk 0:01:53.8]}
19... fxe5 {[%clk 0:02:42.5]} 20. Qc3 {[%clk 0:01:55.3]} 20... Qd6 {[%clk
0:02:40.7]} 21. Rfe1 {[%clk 0:01:54.6]} 21... Qf6 {[%clk 0:02:31.3]} 22. Qxe5
{[%clk 0:01:53.2]} 22... Qxe5 {[%clk 0:02:27.7]} 23. Rxe5 {[%clk 0:01:52.7]}
23... Rf7 {[%clk 0:02:23]} 24. Rb1 {[%clk 0:01:51.6]} 24... Rb8 {[%clk
0:02:16.9]} 25. Re6 {[%clk 0:01:51.9]} 25... Nc7 {[%clk 0:02:14.8]} 26. Reb6
{[%clk 0:01:51.7]} 26... Ne8 {[%clk 0:02:15.4]} 27. Rxb7 {[%clk 0:01:46.9]}
27... Rxb7 {[%clk 0:02:16.5]} 28. Rxb7 {[%clk 0:01:47.9]} 28... Nd6 {[%clk
0:02:18.4]} 29. Rc7 {[%clk 0:01:49.1]} 29... Nxc4 {[%clk 0:02:19.3]} 30. Rxc5
{[%clk 0:01:50.1]} 30... Nxa3 {[%clk 0:02:20]} 31. Rxa5 {[%clk 0:01:51.7]} 31...
Nc4 {[%clk 0:02:21]} 32. Rc5 {[%clk 0:01:50]} 32... Nd6 {[%clk 0:02:21.9]} 33.
Rc7 {[%clk 0:01:48.4]} 33... Kf6 {[%clk 0:02:22.5]} 34. h4 {[%clk 0:01:45.7]}
34... h6 {[%clk 0:02:23.1]} 35. Bh3 {[%clk 0:01:46.2]} 35... Rf8 {[%clk
0:02:22.8]} 36. Rc1 {[%clk 0:01:37]} 36... g5 {[%clk 0:02:22.6]} 37. h5 {[%clk
0:01:36.9]} 37... Rb8 {[%clk 0:02:21]} 38. Re1 {[%clk 0:01:37.5]} 38... Nc4
{[%clk 0:01:49.5]} 39. Re6+ {[%clk 0:01:36.7]} 39... Kf7 {[%clk 0:01:49.7]} 40.
Rxh6 {[%clk 0:01:37.6]} 40... Ne5 {[%clk 0:01:48.7]} 41. Re6 {[%clk 0:01:33.4]}
41... Rb1+ {[%clk 0:01:38.9]} 42. Kg2 {[%clk 0:01:33.5]} 42... Re1 {[%clk
0:01:39.6]} 43. Bg4 {[%clk 0:01:14.4]} 43... Re4 {[%clk 0:01:18.4]} 44. Bf5
{[%clk 0:01:14.7]} 44... Re1 {[%clk 0:01:15.7]} 45. f4 {[%clk 0:01:02.9]} 45...
gxf4 {[%clk 0:01:15.5]} 46. gxf4 {[%clk 0:01:03.8]} 1-0

[Event "*** Titled Tuesday 3|2 Blitz"]
[Site "Chess.com"]
[Date "2016.07.05"]
[Round "4"]
[White "simplerXiao"]
[Black "Rock700chess"]
[Result "1-0"]
[WhiteElo "2318"]
[BlackElo "2213"]
[TimeControl "180+2"]
[EndTime "11:48:21 PDT"]
[Termination "simplerXiao won on time"]

1. e4 {[%clk 0:03:01.2]} 1... e5 {[%clk 0:02:59.9]} 2. Nc3 {[%clk 0:02:58.2]}
2... Nf6 {[%clk 0:02:59.6]} 3. g3 {[%clk 0:02:59.2]} 3... Nc6 {[%clk 0:02:47]}
4. Bg2 {[%clk 0:02:53.4]} 4... Bc5 {[%clk 0:02:47.9]} 5. Nge2 {[%clk 0:02:54]}
5... d6 {[%clk 0:02:48.1]} 6. d3 {[%clk 0:02:55.4]} 6... a6 {[%clk 0:02:43.4]}
7. h3 {[%clk 0:02:54.2]} 7... Be6 {[%clk 0:02:43.5]} 8. O-O {[%clk 0:02:46.9]}
8... O-O {[%clk 0:02:43.2]} 9. g4 {[%clk 0:02:44.8]} 9... h6 {[%clk 0:02:36.3]}
10. Ng3 {[%clk 0:02:45.1]} 10... d5 {[%clk 0:02:36.1]} 11. Kh2 {[%clk 0:02:37]}
11... Qd7 {[%clk 0:02:13.7]} 12. f4 {[%clk 0:02:29.9]} 12... exf4 {[%clk
0:02:13.3]} 13. Bxf4 {[%clk 0:02:25.9]} 13... dxe4 {[%clk 0:02:14.2]} 14. Ncxe4
{[%clk 0:02:26.8]} 14... Nxe4 {[%clk 0:02:14.8]} 15. Nxe4 {[%clk 0:02:26]} 15...
Bd4 {[%clk 0:02:14.3]} 16. c3 {[%clk 0:02:25.8]} 16... Be5 {[%clk 0:02:15.1]}
17. Bxe5 {[%clk 0:02:24.2]} 17... Nxe5 {[%clk 0:02:16]} 18. d4 {[%clk
0:02:25.5]} 18... Ng6 {[%clk 0:02:07.5]} 19. Qd2 {[%clk 0:02:22.8]} 19... Rae8
{[%clk 0:02:02]} 20. Rae1 {[%clk 0:02:22]} 20... b6 {[%clk 0:02:02]} 21. Qf2
{[%clk 0:02:20.8]} 21... Bxa2 {[%clk 0:01:56.2]} 22. Nd2 {[%clk 0:02:00]} 22...
Bd5 {[%clk 0:01:55.1]} 23. Nf3 {[%clk 0:01:50.7]} 23... Qd6+ {[%clk 0:01:35]}
24. Kg1 {[%clk 0:01:50.6]} 24... Nf4 {[%clk 0:01:32.1]} 25. Re5 {[%clk
0:01:43.8]} 25... Nxg2 {[%clk 0:01:15.9]} 26. Qxg2 {[%clk 0:01:41.8]} 26... Bxf3
{[%clk 0:01:16.4]} 27. Qxf3 {[%clk 0:01:40.7]} 27... Rxe5 {[%clk 0:01:17.5]} 28.
dxe5 {[%clk 0:01:42.6]} 28... Qxe5 {[%clk 0:01:19.3]} 29. Rf2 {[%clk 0:01:41.7]}
29... a5 {[%clk 0:01:10.7]} 30. Re2 {[%clk 0:01:37.4]} 30... Qc5+ {[%clk
0:01:08.6]} 31. Kg2 {[%clk 0:01:38.5]} 31... Rd8 {[%clk 0:01:09]} 32. Kg3 {[%clk
0:01:36.5]} 32... Qd6+ {[%clk 0:01:02.6]} 33. Kg2 {[%clk 0:01:36.9]} 33... Qd5
{[%clk 0:01:00.6]} 34. Re8+ {[%clk 0:01:35]} 34... Kh7 {[%clk 0:00:55.8]} 35.
Rxd8 {[%clk 0:01:36.2]} 35... Qxd8 {[%clk 0:00:54.5]} 36. Qxf7 {[%clk
0:01:37.4]} 36... Qd2+ {[%clk 0:00:50.7]} 37. Kg3 {[%clk 0:01:38.2]} 37... Qd6+
{[%clk 0:00:47.6]} 38. Kg2 {[%clk 0:01:35]} 38... Qc6+ {[%clk 0:00:47.1]} 39.
Kg3 {[%clk 0:01:35.1]} 39... a4 {[%clk 0:00:44.2]} 40. Qf5+ {[%clk 0:01:32.1]}
40... Qg6 {[%clk 0:00:45.4]} 41. Qd7 {[%clk 0:01:32.9]} 41... Qd6+ {[%clk
0:00:36.8]} 42. Qxd6 {[%clk 0:01:34]} 42... cxd6 {[%clk 0:00:38.7]} 43. Kf4
{[%clk 0:01:31.2]} 43... Kg6 {[%clk 0:00:39.5]} 44. h4 {[%clk 0:01:32.7]} 44...
Kf6 {[%clk 0:00:40.5]} 45. c4 {[%clk 0:01:31.5]} 45... Ke6 {[%clk 0:00:27.4]}
46. Ke4 {[%clk 0:01:31.3]} 46... Kd7 {[%clk 0:00:13.7]} 47. Kd5 {[%clk
0:01:31.8]} 47... Kc7 {[%clk 0:00:15]} 48. g5 {[%clk 0:01:27.9]} 48... hxg5
{[%clk 0:00:15.3]} 49. hxg5 {[%clk 0:01:29.2]} 49... g6 {[%clk 0:00:04.8]} 50.
Ke6 {[%clk 0:01:29.8]} 50... Kc6 {[%clk 0:00:06.5]} 51. Kf6 {[%clk 0:01:31.2]}
51... Kc5 {[%clk 0:00:08.2]} 52. Kxg6 {[%clk 0:01:32.7]} 52... Kxc4 {[%clk
0:00:09.8]} 53. Kf6 {[%clk 0:01:32.1]} 53... d5 {[%clk 0:00:10.2]} 54. g6 {[%clk
0:01:33.6]} 54... d4 {[%clk 0:00:11.8]} 55. g7 {[%clk 0:01:35.2]} 55... d3
{[%clk 0:00:04.5]} 56. g8=Q+ {[%clk 0:01:36.4]} 1-0